bitfinex/quotes_BTCUSD_20250123
["timestamp","ask_amount","ask_price","bid_price","bid_amount"]
[1737640668519,0.00040742,102660.0,102650.0,0.37320629]
[1737640668717,0.00040742,102660.0,102650.0,0.20924528]
[1737640669731,0.00040742,102660.0,102650.0,0.37320629]
[1737640669967,0.00040742,102660.0,102650.0,0.47055358]
[1737640670380,0.00040742,102660.0,102650.0,0.30659257]
[1737640670995,0.00040742,102660.0,102650.0,0.20924528]
[1737640671400,0.00040742,102660.0,102650.0,0.19456528]
[1737640671613,0.00040742,102660.0,102650.0,0.11213799]
[1737640671816,0.00040742,102660.0,102650.0,0.01492]
[1737640672022,0.09781542,102660.0,102640.0,0.584531]
[1737640672226,0.09781542,102660.0,102650.0,0.097418]
[1737640672432,0.00040742,102660.0,102650.0,0.097418]
[1737640674399,0.09781542,102660.0,102650.0,0.097418]
[1737640674589,0.09781542,102660.0,102640.0,0.501906]
[1737640674788,0.29263542,102660.0,102640.0,0.501908]
[1737640675142,0.29263542,102660.0,102630.0,0.389742]
[1737640675143,0.097418,102650.0,102630.0,0.389742]
[1737640675372,0.097418,102650.0,102630.0,0.58450829]
[1737640675552,0.292257,102650.0,102630.0,0.501921]
[1737640675796,0.487106,102650.0,102630.0,0.307053]
[1737640675977,0.487106,102650.0,102630.0,0.09743]
[1737640675978,0.097427,102640.0,102630.0,0.09743]
[1737640676236,0.097427,102640.0,102620.0,0.229641]
[1737640676237,0.097431,102640.0,102620.0,0.229641]
[1737640676459,0.389686,102650.0,102620.0,0.229641]
[1737640676666,0.097431,102640.0,102630.0,0.097437]
[1737640677075,0.292262,102650.0,102630.0,0.29231]
[1737640677278,0.487109,102650.0,102630.0,0.29231]
[1737640677899,0.097427,102640.0,102630.0,0.097437]
[1737640678118,0.487112,102650.0,102630.0,0.29231]
[1737640678327,0.292265,102650.0,102630.0,0.38684987]
[1737640678527,0.41020542,102660.0,102630.0,0.59651106]
[1737640678745,0.09742,102650.0,102630.0,0.79137406]
[1737640679000,0.29324069,102650.0,102630.0,0.59652006]
[1737640679227,0.292261,102650.0,102630.0,0.487162]
[1737640679450,0.487108,102650.0,102630.0,0.292288]
[1737640679662,0.487108,102650.0,102630.0,0.56977821]
[1737640679927,0.487108,102650.0,102630.0,0.37490521]
[1737640680176,0.097427,102640.0,102630.0,0.097428]
[1737640680422,0.292285,102640.0,102620.0,0.42167706]
[1737640680667,0.292285,102640.0,102620.0,0.326919]
[1737640680668,0.565351,102640.0,102620.0,0.326919]
[1737640680931,0.56535,102640.0,102620.0,0.521804]
[1737640681161,0.144237,102630.0,102620.0,0.02]
[1737640683016,0.144237,102630.0,102620.0,0.117446]
[1737640683336,0.24158429,102630.0,102620.0,0.01996]
[1737640683596,0.24158429,102630.0,102570.0,0.194978]
[1737640683597,0.02,102600.0,102570.0,0.194978]
[1737640683788,0.319922,102610.0,102590.0,0.097475]
[1737640683988,0.0478,102610.0,102600.0,0.097465]
[1737640684233,0.097452,102620.0,102610.0,0.097456]
[1737640684442,0.097452,102620.0,102600.0,0.48729]
[1737640684640,0.292348,102620.0,102600.0,0.48729]
[1737640684753,0.487252,102620.0,102600.0,0.292373]
[1737640684954,0.097456,102610.0,102600.0,0.09760992]
[1737640685371,0.097456,102610.0,102600.0,0.00015192]
[1737640686043,0.21480329,102610.0,102600.0,0.00015192]
[1737640687173,0.27140329,102610.0,102600.0,0.00015192]
[1737640687775,0.097449,102620.0,102610.0,0.097456]
[1737640687977,0.292348,102620.0,102600.0,0.48744392]
[1737640688182,0.097456,102610.0,102600.0,0.09760792]
[1737640688389,0.097456,102610.0,102600.0,0.00015192]
[1737640688734,0.21480329,102610.0,102600.0,0.00015192]
[1737640688938,0.30416135,102610.0,102600.0,0.00015192]
[1737640689139,0.52860864,102610.0,102600.0,0.00015192]
[1737640689953,0.52860864,102610.0,102600.0,0.00045012]
[1737640690381,0.57860864,102610.0,102600.0,0.00045012]
[1737640690812,0.292487,102570.0,102560.0,0.097503]
[1737640691237,0.097494,102570.0,102560.0,0.097503]
[1737640691640,0.097494,102570.0,102550.0,0.39007639]
[1737640691641,0.60483929,102570.0,102550.0,0.29256939]
[1737640691856,0.27997222,102570.0,102560.0,0.097503]
[1737640692062,0.21484829,102570.0,102550.0,0.48757839]
[1737640692252,0.40984029,102570.0,102560.0,0.097503]
[1737640692869,0.456369,102580.0,102560.0,0.097503]
[1737640693019,0.65120329,102580.0,102560.0,0.292501]
[1737640693206,0.84618529,102580.0,102560.0,0.487508]
[1737640693413,0.097494,102570.0,102560.0,0.097503]
[1737640695021,0.31234629,102570.0,102550.0,0.29256739]
[1737640695232,0.097503,102560.0,102550.0,0.29256739]
[1737640695437,0.097503,102560.0,102550.0,5.039e-05]
[1737640695842,0.097503,102560.0,102550.0,0.09756339]
[1737640696254,0.60484829,102570.0,102550.0,0.48760839]
[1737640696478,0.79984729,102570.0,102550.0,0.48760839]
[1737640696652,0.79984829,102570.0,102550.0,0.48760839]
[1737640696852,0.19484429,102570.0,102560.0,0.097503]
[1737640697151,0.097497,102570.0,102560.0,0.097503]
[1737640697393,0.12845737,102590.0,102570.0,0.0827]
[1737640697608,0.507303,102610.0,102590.0,0.292411]
[1737640697817,0.09734729,102610.0,102600.0,0.292395]
[1737640698024,0.11734729,102610.0,102600.0,0.292395]
[1737640698225,0.21480329,102610.0,102600.0,0.292395]
[1737640698432,0.40972129,102610.0,102590.0,0.584815]
[1737640698635,0.49467372,102610.0,102600.0,0.097465]
[1737640698837,0.40972129,102610.0,102600.0,0.09751539]
[1737640699254,0.21480329,102610.0,102600.0,0.09751539]
[1737640699454,0.11734729,102610.0,102600.0,0.09751539]
[1737640701422,0.21480329,102610.0,102600.0,5.039e-05]
[1737640702058,0.21480329,102610.0,102600.0,0.09751539]
[1737640702420,0.29975462,102610.0,102600.0,5.039e-05]
[1737640702643,0.43911268,102610.0,102600.0,5.039e-05]
[1737640702848,0.56821268,102610.0,102600.0,5.039e-05]
[1737640703304,0.56835478,102610.0,102600.0,5.039e-05]
[1737640704852,0.45899672,102610.0,102600.0,5.039e-05]
[1737640706403,0.21494539,102610.0,102600.0,5.039e-05]
[1737640706606,0.24494539,102610.0,102600.0,5.039e-05]
[1737640707456,0.36944539,102610.0,102600.0,5.039e-05]
[1737640708099,0.47880345,102610.0,102600.0,5.039e-05]
[1737640708302,0.50180345,102610.0,102600.0,5.039e-05]
[1737640708543,0.59915074,102610.0,102600.0,5.039e-05]
[1737640709096,0.41679268,102610.0,102600.0,5.039e-05]
[1737640709400,0.46679268,102610.0,102600.0,5.039e-05]
[1737640709815,0.41679268,102610.0,102600.0,5.039e-05]
[1737640710658,0.26264539,102610.0,102600.0,5.039e-05]
[1737640710905,0.21494539,102610.0,102600.0,5.039e-05]
[1737640711098,0.21494539,102610.0,102600.0,0.09751539]
[1737640711311,0.21494539,102610.0,102600.0,5.039e-05]
[1737640711758,0.0975981,102610.0,102600.0,0.09751539]
[1737640711990,0.21494539,102610.0,102600.0,5.039e-05]
[1737640712226,0.29991193,102610.0,102600.0,5.039e-05]
[1737640714835,0.21494539,102610.0,102600.0,5.039e-05]
[1737640715103,0.0001421,102610.0,102600.0,0.28867345]
[1737640715332,0.0975981,102610.0,102600.0,0.17931539]
[1737640715577,0.21494539,102610.0,102600.0,5.039e-05]
[1737640716060,0.24405068,102610.0,102600.0,5.039e-05]
[1737640716301,0.34139797,102610.0,102600.0,5.039e-05]
[1737640717678,0.31229268,102610.0,102600.0,5.039e-05]
[1737640719514,0.29229268,102610.0,102600.0,5.039e-05]
[1737640719718,0.34229268,102610.0,102600.0,5.039e-05]
[1737640720346,0.45165074,102610.0,102600.0,5.039e-05]
[1737640720698,0.34229268,102610.0,102600.0,5.039e-05]
[1737640720933,0.45165074,102610.0,102600.0,5.039e-05]
[1737640721525,0.53025074,102610.0,102600.0,5.039e-05]
[1737640721726,0.48025074,102610.0,102600.0,5.039e-05]
[1737640722136,0.8083088,102610.0,102600.0,3.9e-07]
[1737640722388,0.9083088,102610.0,102600.0,3.9e-07]
[1737640722950,0.69895074,102610.0,102600.0,3.9e-07]
[1737640725148,0.9083088,102610.0,102600.0,3.9e-07]
[1737640726546,0.92819408,102610.0,102600.0,0.00029943]
[1737640727370,0.81883602,102610.0,102600.0,0.00029943]
[1737640727598,0.92819408,102610.0,102600.0,0.00029943]
[1737640728360,0.92819408,102610.0,102600.0,4.3e-07]
[1737640728505,0.92687138,102610.0,102600.0,4.3e-07]
[1737640730235,0.92687138,102610.0,102560.0,0.00181841]
[1737640730236,0.097494,102570.0,102560.0,0.00181841]
[1737640730593,0.40892534,102570.0,102560.0,0.0018688]
[1737640730779,0.40794565,102570.0,102560.0,0.0018688]
[1737640733539,0.51730371,102570.0,102560.0,0.0018688]
[1737640734122,0.40794565,102570.0,102560.0,0.0018688]
[1737640734739,0.51730371,102570.0,102560.0,0.0018688]
[1737640735084,0.4274824,102570.0,102560.0,0.0018688]
[1737640736590,0.43721315,102570.0,102560.0,0.0018688]
[1737640737603,0.22410879,102570.0,102560.0,0.0018688]
[1737640737781,0.12661479,102570.0,102560.0,0.0993718]
[1737640737986,0.10707804,102570.0,102560.0,0.0993718]
[1737640738567,0.09734729,102570.0,102560.0,0.0993718]
[1737640739593,0.19484129,102570.0,102560.0,0.0993718]
[1737640739792,0.12655136,102580.0,102570.0,0.097494]
[1737640740036,0.23919865,102580.0,102570.0,0.097494]
[1737640740306,0.23919865,102580.0,102560.0,0.5668568]
[1737640740307,0.40981329,102580.0,102560.0,0.5668568]
[1737640740494,0.097494,102570.0,102560.0,0.3718578]
[1737640740937,0.58404524,102580.0,102560.0,0.3718578]
[1737640741183,0.87651924,102580.0,102560.0,0.5668648]
[1737640741309,0.68153624,102580.0,102560.0,0.5668648]
[1737640741943,0.87651724,102580.0,102560.0,0.5668648]
[1737640742337,0.68153624,102580.0,102560.0,0.5668648]
[1737640742556,0.87651624,102580.0,102560.0,0.5668648]
[1737640742845,0.68153524,102580.0,102560.0,0.5668648]
[1737640743302,0.68153524,102580.0,102560.0,0.5668558]
[1737640743745,0.68053524,102580.0,102560.0,0.5668558]
[1737640743948,0.38882029,102580.0,102570.0,0.097494]
[1737640744153,0.43980995,102590.0,102580.0,0.097484]
[1737640744154,0.34232195,102590.0,102580.0,0.097484]
[1737640744376,0.097484,102580.0,102570.0,0.292458]
[1737640744591,0.21483129,102580.0,102570.0,0.097486]
[1737640745016,0.09734729,102580.0,102570.0,0.097486]
[1737640745643,0.34232195,102590.0,102560.0,0.38371786]
[1737640745822,0.43966924,102590.0,102580.0,0.097484]
[1737640746016,0.63462824,102590.0,102570.0,0.487434]
[1737640746263,0.21301648,102580.0,102570.0,0.097486]
[1737640746581,0.42799448,102580.0,102560.0,0.3718588]
[1737640746785,0.097494,102570.0,102560.0,0.0793688]
[1737640746938,0.42800248,102580.0,102560.0,0.3718658]
[1737640747133,0.01818519,102580.0,102570.0,0.097494]
[1737640747342,0.097484,102580.0,102570.0,0.097494]
[1737640747560,0.76133732,102590.0,102570.0,0.292475]
[1737640747715,0.19581098,102580.0,102570.0,0.097494]
[1737640747921,0.29232629,102580.0,102560.0,0.5668528]
[1737640748123,0.097494,102570.0,102560.0,0.3718588]
[1737640748326,0.77485346,102580.0,102560.0,0.3718588]
[1737640748533,0.57986746,102580.0,102560.0,0.5668578]
[1737640748747,0.77484946,102580.0,102560.0,0.3718588]
[1737640748948,0.097494,102570.0,102560.0,0.3718588]
[1737640749156,0.02913085,102570.0,102560.0,0.3718588]
[1737640749366,0.35430989,102570.0,102560.0,0.0793688]
[1737640749595,0.3533302,102570.0,102560.0,0.0018688]
[1737640750456,0.32419935,102570.0,102560.0,0.0018688]
[1737640750683,0.35328472,102570.0,102560.0,0.0018688]
[1737640751302,0.33328472,102570.0,102560.0,0.0018688]
[1737640751522,0.40154664,102570.0,102560.0,0.0018688]
[1737640751739,0.45154664,102570.0,102560.0,0.0018688]
[1737640753325,0.40154664,102570.0,102560.0,0.0018688]
[1737640753558,0.45154664,102570.0,102560.0,0.0018688]
[1737640753779,0.5839047,102570.0,102560.0,0.0018688]
[1737640753989,0.7320047,102570.0,102560.0,0.0018688]
[1737640754211,0.8320047,102570.0,102560.0,0.0018688]
[1737640755365,0.80363713,102570.0,102560.0,0.0018688]
[1737640755571,0.66040446,102570.0,102560.0,0.0018688]
[1737640755796,0.37409911,102570.0,102560.0,0.0018688]
[1737640756009,0.53345717,102570.0,102560.0,0.0018688]
[1737640757044,0.48345717,102570.0,102560.0,0.0018688]
[1737640757470,0.147522,102540.0,102530.0,0.00029862]
[1737640757684,0.5875651,102540.0,102530.0,0.0005068]
[1737640757970,0.6839327,102540.0,102530.0,0.0005068]
[1737640758410,0.57457464,102540.0,102530.0,0.0005068]
[1737640759823,0.6839327,102540.0,102530.0,0.0005068]
[1737640760292,0.57457464,102540.0,102530.0,0.0005068]
[1737640760606,0.47457464,102540.0,102530.0,0.0005068]
[1737640760847,0.28405407,102540.0,102530.0,0.0005068]
[1737640761274,0.39341213,102540.0,102530.0,0.0005068]
[1737640761471,0.40320239,102540.0,102530.0,0.0005068]
[1737640762192,0.66556045,102540.0,102530.0,0.0005068]
[1737640762574,0.61556045,102540.0,102530.0,0.0005068]
[1737640762831,0.71290774,102540.0,102530.0,0.0005068]
[1737640762985,0.60354968,102540.0,102530.0,0.0005068]
[1737640763200,0.53320239,102540.0,102530.0,0.0005068]
[1737640763453,0.48320239,102540.0,102530.0,0.0005068]
[1737640763672,0.24384433,102540.0,102530.0,0.0005068]
[1737640763872,0.20465955,102540.0,102530.0,0.0005068]
[1737640764111,0.20465955,102540.0,102530.0,0.0813068]
[1737640764112,0.19486929,102540.0,102530.0,0.0813068]
[1737640764316,0.097522,102540.0,102530.0,0.1269068]
[1737640764520,0.24761322,102540.0,102530.0,0.1269068]
[1737640764732,0.37697128,102540.0,102530.0,0.0813068]
[1737640764950,0.52697128,102540.0,102530.0,0.0005068]
[1737640765144,0.68932934,102540.0,102530.0,0.0005068]
[1737640765503,0.57997128,102540.0,102530.0,0.0005068]
[1737640765750,0.63932934,102540.0,102530.0,0.0005068]
[1737640767908,0.52997128,102540.0,102530.0,0.0005068]
[1737640768307,0.63932934,102540.0,102530.0,0.0005068]
[1737640772262,0.52997128,102540.0,102530.0,0.0005068]
[1737640772641,0.63932934,102540.0,102530.0,0.0005068]
[1737640775494,0.63947184,102540.0,102530.0,0.0005068]
[1737640777230,0.73947184,102540.0,102530.0,1e-08]
[1737640777440,0.120532,102530.0,102520.0,0.00025863]
[1737640777736,0.42607122,102530.0,102520.0,0.00025863]
[1737640777979,0.42509153,102530.0,102520.0,0.00025863]
[1737640778358,0.57509153,102530.0,102520.0,0.00025863]
[1737640778558,0.78444959,102530.0,102520.0,0.00025863]
[1737640778796,0.89045959,102530.0,102520.0,6.3e-07]
[1737640779221,0.38926712,102510.0,102500.0,0.01]
[1737640779433,0.51060543,102510.0,102500.0,0.01]
[1737640783027,0.34808163,102510.0,102500.0,0.01]
[1737640783215,0.34409061,102510.0,102500.0,0.0931]
[1737640783411,0.54409061,102510.0,102500.0,0.0931]
[1737640783627,0.49409061,102510.0,102500.0,0.0931]
[1737640783827,0.57082556,102510.0,102500.0,0.0931]
[1737640784062,0.58067414,102510.0,102500.0,0.0931]
[1737640784816,0.56067414,102510.0,102500.0,0.0931]
[1737640786062,0.43067414,102510.0,102500.0,0.0931]
[1737640786432,0.32131608,102510.0,102500.0,0.0931]
[1737640786833,0.43067414,102510.0,102500.0,0.0931]
[1737640787979,0.43367414,102510.0,102500.0,0.0931]
[1737640788181,0.43367414,102510.0,102500.0,0.01]
[1737640789232,0.43367414,102510.0,102500.0,0.01029925]
[1737640789755,0.22458113,102510.0,102500.0,0.01029925]
[1737640789986,0.33393919,102510.0,102500.0,0.01029925]
[1737640790186,0.35693919,102510.0,102500.0,0.01029925]
[1737640791130,0.61629725,102510.0,102500.0,0.01029925]
[1737640791472,0.50693919,102510.0,102500.0,0.01029925]
[1737640791669,0.61629725,102510.0,102500.0,0.01029925]
[1737640791868,0.60428648,102510.0,102500.0,0.01029925]
[1737640792651,0.76364454,102510.0,102500.0,0.01029925]
[1737640794989,0.65428648,102510.0,102500.0,0.01029925]
[1737640798840,0.60428648,102510.0,102500.0,0.01029925]
[1737640799818,0.65428648,102510.0,102500.0,0.01029925]
[1737640800441,0.76364454,102510.0,102500.0,0.01029925]
[1737640801634,0.76364454,102510.0,102500.0,0.00866528]
[1737640801635,0.71364454,102510.0,102500.0,0.00866528]
[1737640803175,0.33393919,102510.0,102500.0,0.00866528]
[1737640803512,0.50393919,102510.0,102500.0,0.00866528]
[1737640804734,0.50393919,102510.0,102500.0,0.00848701]
[1737640805133,0.50393919,102510.0,102500.0,0.00844701]
[1737640805372,0.60128648,102510.0,102500.0,0.00844701]
[1737640806336,0.24458113,102510.0,102500.0,0.00844701]
[1737640806567,0.22458113,102510.0,102500.0,0.00844701]
[1737640807175,0.33393919,102510.0,102500.0,0.00844701]
[1737640807375,0.35393919,102510.0,102500.0,0.00844701]
[1737640807593,0.59329725,102510.0,102500.0,0.00844701]
[1737640807798,0.71364454,102510.0,102500.0,0.00844701]
[1737640808353,0.76364454,102510.0,102500.0,0.00844701]
[1737640808748,0.71364454,102510.0,102500.0,0.00844701]
[1737640808955,0.60428648,102510.0,102500.0,0.00844701]
[1737640810046,0.24458113,102510.0,102500.0,0.00844701]
[1737640810266,0.35393919,102510.0,102500.0,0.00844701]
[1737640810476,0.33393919,102510.0,102500.0,0.00844701]
[1737640810694,0.24458113,102510.0,102500.0,0.00844701]
[1737640811292,0.35393919,102510.0,102500.0,0.00844701]
[1737640811712,0.45128648,102510.0,102500.0,0.00844701]
[1737640811949,0.34192842,102510.0,102500.0,0.00844701]
[1737640812421,0.24458113,102510.0,102500.0,0.10600701]
[1737640812602,0.22488947,102510.0,102500.0,0.00844701]
[1737640813577,0.32017001,102510.0,102500.0,0.00844701]
[1737640813984,0.30017001,102510.0,102500.0,0.00844701]
[1737640814555,0.47317001,102510.0,102500.0,0.00844701]
[1737640814761,0.67987536,102510.0,102500.0,0.00844701]
[1737640816042,0.77987536,102510.0,102500.0,1e-08]
[1737640816658,0.37056,102500.0,102490.0,6.3e-07]
[1737640816870,0.37058,102480.0,102470.0,0.00029862]
[1737640817078,0.68664341,102480.0,102470.0,0.00029862]
[1737640817284,0.76337836,102480.0,102470.0,0.00029862]
[1737640817479,0.88747836,102480.0,102470.0,6.2e-07]
[1737640817919,0.94598836,102480.0,102470.0,6.2e-07]
[1737640818156,0.170599,102460.0,102450.0,0.00029862]
[1737640818301,0.52828404,102460.0,102450.0,0.00034924]
[1737640818497,0.6840097,102460.0,102450.0,0.00034924]
[1737640818990,1.0396237,102460.0,102450.0,0.00034924]
[1737640819192,1.0396237,102460.0,102450.0,2.4e-07]
[1737640819193,1.1741337,102460.0,102450.0,2.4e-07]
[1737640819406,0.9185197,102460.0,102450.0,2.4e-07]
[1737640820195,0.8600097,102460.0,102450.0,2.4e-07]
[1737640822015,0.49438852,102460.0,102450.0,2.4e-07]
[1737640822222,0.21468317,102460.0,102450.0,2.4e-07]
[1737640822453,0.23468317,102460.0,102450.0,2.4e-07]
[1737640822665,0.32404123,102460.0,102450.0,2.4e-07]
[1737640822895,0.21468317,102460.0,102450.0,2.4e-07]
[1737640823104,0.34168813,102460.0,102450.0,2.4e-07]
[1737640823337,0.20460396,102460.0,102450.0,2.4e-07]
[1737640823545,0.09734729,102460.0,102450.0,0.09760824]
[1737640823748,0.10034729,102460.0,102450.0,0.09760824]
[1737640823970,0.09834729,102460.0,102450.0,0.09760824]
[1737640824186,0.23705812,102460.0,102450.0,2.4e-07]
[1737640824391,0.34541618,102460.0,102450.0,0.0002997]
[1737640824597,0.56841618,102460.0,102450.0,0.0002997]
[1737640824807,0.72777424,102460.0,102450.0,0.0002997]
[1737640825886,0.88671824,102460.0,102450.0,0.0002997]
[1737640826749,0.89666635,102460.0,102450.0,0.0002997]
[1737640826961,0.79666635,102460.0,102450.0,7e-07]
[1737640827174,0.64072235,102460.0,102450.0,7e-07]
[1737640827403,0.63772235,102460.0,102450.0,7e-07]
[1737640827848,0.66403612,102460.0,102450.0,7e-07]
[1737640828062,0.66503612,102460.0,102450.0,7e-07]
[1737640828275,0.66803612,102460.0,102450.0,7e-07]
[1737640828488,0.73614789,102450.0,102440.0,5.3e-07]
[1737640828698,0.89496236,102450.0,102440.0,3.4e-07]
[1737640829143,0.73013247,102450.0,102440.0,3.4e-07]
[1737640832752,0.63013247,102450.0,102440.0,3.4e-07]
[1737640833758,0.68013247,102450.0,102440.0,3.4e-07]
[1737640833941,0.63013247,102450.0,102440.0,3.4e-07]
[1737640834371,0.1,102440.0,102430.0,0.00025917]
[1737640834610,0.83422788,102440.0,102430.0,0.00035912]
[1737640834818,0.83324819,102440.0,102430.0,0.00035912]
[1737640835248,0.5684183,102440.0,102430.0,0.00035912]
[1737640835707,0.40358841,102440.0,102430.0,0.00035912]
[1737640835930,0.21496529,102440.0,102430.0,0.08185912]
[1737640836803,0.52979518,102440.0,102430.0,0.08185912]
[1737640837036,0.53279518,102440.0,102430.0,0.08185912]
[1737640837275,0.53279518,102440.0,102430.0,0.00035912]
[1737640837488,0.75953013,102440.0,102430.0,0.00035912]
[1737640837700,0.92436002,102440.0,102430.0,0.00035912]
[1737640837913,0.75953013,102440.0,102430.0,0.00035912]
[1737640838570,0.77902757,102440.0,102430.0,0.00035912]
[1737640840539,0.89385746,102440.0,102430.0,0.00035912]
[1737640841386,0.90341072,102440.0,102430.0,0.00035912]
[1737640841641,0.85311072,102440.0,102430.0,1.2e-07]
[1737640842004,0.420627,102430.0,102420.0,9.5e-07]
[1737640842186,0.420627,102430.0,102400.0,0.0255618]
[1737640842187,0.15,102410.0,102400.0,0.0255618]
[1737640842428,0.15,102410.0,102390.0,0.00029904]
[1737640842429,0.297656,102400.0,102390.0,0.00029904]
[1737640842635,0.50983318,102400.0,102390.0,0.0008052]
[1737640843858,0.53283318,102400.0,102390.0,0.0008052]
[1737640844065,0.57307318,102400.0,102390.0,0.0008052]
[1737640844282,0.64980813,102400.0,102390.0,0.0008052]
[1737640845980,0.65947931,102400.0,102390.0,0.0008052]
[1737640846405,0.38791447,102400.0,102390.0,0.0008052]
[1737640846624,0.21491447,102400.0,102390.0,0.0799052]
[1737640846836,0.36491447,102400.0,102390.0,0.0799052]
[1737640847077,0.38492422,102400.0,102390.0,0.0799052]
[1737640847282,0.57275411,102400.0,102390.0,0.0799052]
[1737640847505,0.6501014,102400.0,102390.0,0.0799052]
[1737640847720,0.6701014,102400.0,102390.0,0.0799052]
[1737640848258,0.48227151,102400.0,102390.0,0.0799052]
[1737640848680,0.33227151,102400.0,102390.0,0.0799052]
[1737640848933,0.21492422,102400.0,102390.0,0.0799052]
[1737640849171,0.09734729,102400.0,102390.0,0.1775702]
[1737640849342,0.508217,102420.0,102390.0,0.0777052]
[1737640849609,0.09734729,102410.0,102400.0,0.341855]
[1737640849814,0.19499329,102410.0,102400.0,0.0489]
[1737640850040,0.09734729,102410.0,102400.0,0.341867]
[1737640850247,0.09734729,102410.0,102400.0,0.418767]
[1737640850448,0.195264,102430.0,102420.0,0.0805]
[1737640850652,0.38926168,102430.0,102420.0,0.0805]
[1737640852121,0.57409157,102430.0,102420.0,0.0805]
[1737640852323,0.57409157,102430.0,102400.0,0.1249]
[1737640852324,0.097646,102410.0,102400.0,0.1249]
[1737640852537,0.19499329,102410.0,102400.0,0.1249]
[1737640852959,0.19597298,102410.0,102400.0,0.1249]
[1737640853397,0.38080287,102410.0,102400.0,0.076]
[1737640853574,0.31234058,102410.0,102400.0,0.076]
[1737640853996,0.47717047,102410.0,102400.0,0.076]
[1737640854198,0.31234058,102410.0,102400.0,0.076]
[1737640854971,0.20485582,102410.0,102400.0,0.076]
[1737640855588,0.22485582,102410.0,102400.0,0.076]
[1737640855802,0.097656,102400.0,102390.0,0.0834052]
[1737640856023,0.19598298,102400.0,102390.0,0.0834052]
[1737640856222,0.23800329,102400.0,102390.0,0.0834052]
[1737640856428,0.33535058,102400.0,102390.0,0.0834052]
[1737640856632,0.65018047,102400.0,102390.0,0.0834052]
[1737640856834,0.65018047,102400.0,102390.0,0.0008052]
[1737640857040,0.48535058,102400.0,102390.0,0.0008052]
[1737640858066,0.65018047,102400.0,102390.0,0.0008052]
[1737640859206,0.48535058,102400.0,102390.0,0.0008052]
[1737640860179,0.19500329,102400.0,102390.0,0.0008052]
[1737640861393,0.19480891,102400.0,102390.0,0.0008052]
[1737640861625,0.1957886,102400.0,102390.0,0.0008052]
[1737640862373,0.1957886,102400.0,102390.0,0.0984702]
[1737640862571,0.19480891,102400.0,102390.0,0.0008052]
[1737640862919,0.09734729,102400.0,102390.0,0.0984702]
[1737640863139,0.09734729,102400.0,102390.0,0.17142962]
[1737640863313,0.09734729,102400.0,102390.0,0.1813702]
[1737640865780,0.01016178,102410.0,102400.0,0.097656]
[1737640865994,0.10750907,102410.0,102400.0,0.097656]
[1737640866213,0.20515507,102410.0,102400.0,0.097656]
[1737640866584,0.09764654,102410.0,102400.0,0.097656]
[1737640867070,0.00029925,102410.0,102400.0,0.30668712]
[1737640867484,0.00029925,102410.0,102400.0,0.54478589]
[1737640867694,0.00029925,102410.0,102400.0,0.59478589]
[1737640867903,0.00029925,102410.0,102400.0,0.429956]
[1737640868313,0.00029925,102410.0,102400.0,0.85696307]
[1737640868744,0.00029925,102410.0,102400.0,0.69213318]
[1737640868946,0.0001426,102450.0,102440.0,0.097618]
[1737640869164,0.09748989,102450.0,102440.0,0.097618]
[1737640870310,0.09748989,102450.0,102440.0,0.09777031]
[1737640871227,0.36090747,102450.0,102440.0,0.00015231]
[1737640871458,0.50992778,102450.0,102440.0,0.00015231]
[1737640871678,0.63027507,102450.0,102440.0,0.00015231]
[1737640871909,0.73027507,102450.0,102440.0,0.00015231]
[1737640872390,0.097656,102400.0,102390.0,0.22406404]
[1737640872600,0.19500329,102400.0,102390.0,0.0813052]
[1737640873654,0.19500329,102400.0,102390.0,0.16605094]
[1737640874657,0.62956813,102400.0,102390.0,0.08555094]
[1737640874820,0.19500329,102400.0,102390.0,0.08555094]
[1737640875027,0.09734729,102400.0,102390.0,0.08555094]
[1737640875248,0.19500329,102400.0,102390.0,0.08555094]
[1737640875841,0.488252,102410.0,102390.0,0.18321594]
[1737640876053,0.58559929,102410.0,102390.0,0.37854694]
[1737640876249,0.68325429,102410.0,102390.0,0.08555094]
[1737640876453,0.19500329,102400.0,102390.0,0.08555094]
[1737640876853,0.21320977,102400.0,102390.0,0.08555094]
[1737640877887,0.19500329,102400.0,102390.0,0.0008052]
[1737640878523,0.09734729,102400.0,102390.0,0.0008052]
[1737640878676,0.09734729,102400.0,102390.0,0.0984702]
[1737640879625,0.097654,102410.0,102390.0,0.4891212]
[1737640879858,0.097654,102410.0,102390.0,0.0984702]
[1737640879859,0.19598098,102410.0,102390.0,0.0984702]
[1737640880068,0.38381287,102400.0,102390.0,0.0008052]
[1737640880267,0.38283318,102400.0,102390.0,0.0008052]
[1737640881661,0.21800329,102400.0,102390.0,0.0008052]
[1737640882447,0.38283318,102400.0,102390.0,0.0008052]
[1737640882624,0.45956813,102400.0,102390.0,0.0008052]
[1737640882825,0.47956813,102400.0,102390.0,0.0008052]
[1737640883184,0.62956813,102400.0,102390.0,0.0008052]
[1737640884013,0.62930934,102400.0,102390.0,0.0008052]
[1737640884591,0.55257439,102400.0,102390.0,0.0008052]
[1737640886196,0.72726424,102400.0,102390.0,0.0008052]
[1737640886428,0.120675,102380.0,102370.0,0.00029904]
[1737640886588,0.53383187,102380.0,102370.0,0.00029904]
[1737640886749,0.53285218,102380.0,102370.0,0.00029904]
[1737640886953,0.63019947,102380.0,102370.0,0.00029904]
[1737640887168,0.34502229,102380.0,102370.0,0.00029904]
[1737640887581,0.09734729,102380.0,102370.0,0.00029904]
[1737640887988,0.097671,102390.0,102370.0,0.29335104]
[1737640888282,0.19599798,102390.0,102370.0,0.48872004]
[1737640888487,0.09734729,102390.0,102370.0,0.48872004]
[1737640888639,0.19599398,102390.0,102370.0,0.29335104]
[1737640888839,0.09734729,102390.0,102370.0,0.48871904]
[1737640889038,0.09734729,102380.0,102370.0,0.36983034]
[1737640889244,0.40100012,102400.0,102380.0,0.293009]
[1737640889245,0.30334312,102400.0,102380.0,0.293009]
[1737640889441,0.09734729,102390.0,102380.0,0.29291978]
[1737640889669,0.09734729,102390.0,102380.0,0.2928307]
[1737640890932,0.09734729,102390.0,102370.0,0.58638404]
[1737640891150,0.097675,102380.0,102370.0,0.00029904]
[1737640891385,0.09832698,102380.0,102370.0,0.00029904]
[1737640891599,0.19600198,102380.0,102370.0,0.00029904]
[1737640891805,0.19502229,102380.0,102370.0,0.00029904]
[1737640897186,0.09734729,102380.0,102370.0,0.09798304]
[1737640897392,0.09734729,102380.0,102370.0,0.00029904]
[1737640897603,0.26433981,102380.0,102370.0,0.00029904]
[1737640897797,0.19502229,102380.0,102370.0,0.00029904]
[1737640897963,0.19600198,102380.0,102370.0,0.00029904]
[1737640898167,0.09734729,102380.0,102370.0,0.09798304]
[1737640898743,0.19502229,102380.0,102370.0,0.00029904]
[1737640898879,0.17545212,102380.0,102370.0,0.09798304]
[1737640899079,0.27312712,102380.0,102370.0,0.00029904]
[1737640899909,0.43795701,102380.0,102370.0,0.00029904]
[1737640901213,0.63095701,102380.0,102370.0,0.00029904]
[1737640903655,0.61095701,102380.0,102370.0,0.00029904]